Cogmind - Beta 13 @@@ ROGUE MODE // 2024.04.01 @ 08:40:25 Player: Gingerlink Result: Destroyed by Y-45 Defender with Heavy Assault Rifle Performance ------------- Evolutions (1) 500 Regions Visited (2) 400 Robots Destroyed (21) 105 Value Destroyed (442) 442 Prototype IDs (2) 40 Alien Tech Used (0) 0 Bonus (0) 0 TOTAL SCORE: 1487 Bonus ------- None Cogmind --------- Core Integrity 0/400 Matter 47/300 Energy 100/100 System Corruption 0% Temperature Cool (9) Movement Core (200) Ox3 Location -9/Materials Parts ------- > --- POWER (1) -------- (None) > --- PROPULSION (4) --- (None) > --- UTILITY (2) ------ Medium Storage Unit Visual Processing Unit > --- WEAPON (2) ------- (None) > --- INVENTORY (10) --- Cooling System Medium Storage Unit Mini Grenade Launcher Peak State ------------ > --- POWER ------------ Ion Engine > --- PROPULSION ------- Light Treads Light Treads Aluminum Leg Aluminum Leg > --- UTILITY ---------- Small Storage Unit Visual Processing Unit > --- WEAPON ----------- Assault Rifle Mini Grenade Launcher > --- INVENTORY -------- Ion Engine Light Assault Rifle Light Assault Rifle Mini Grenade Launcher [Rating: 11] Favorites ----------- Power Ion Engine Engine Ion Engine Propulsion Light Treads Treads Light Treads Leg Aluminum Leg Utility Small Storage Unit Storage Small Storage Unit Processor Visual Processing Unit Weapon Assault Rifle Energy Gun Particle Gun Ballistic Gun Assault Rifle Launcher Mini Grenade Launcher Build | -11 -10 -9 ------- Run | Yrd Mat Mat Slots Evolved 2 | . . 2 Power . | . . . Propulsion 2 | . . 2 Utility . | . . . Weapon . | . . . Parts Attached 19 | 6 4 9 Power 3 | 1 1 1 Engine 3 | 1 1 1 Core . | . . . Reactor . | . . . Propulsion 6 | 2 . 4 Treads 3 | 2 . 1 Leg 3 | . . 3 Wheel . | . . . Hover . | . . . Flight . | . . . Utility 3 | 1 1 1 Device . | . . . Storage 2 | 1 . 1 Processor 1 | . 1 . Hackware . | . . . Protection . | . . . Artifact . | . . . Weapon 7 | 2 2 3 Energy Gun 2 | . . 2 Energy Cannon . | . . . Ballistic Gun 2 | 2 . . Ballistic Cannon . | . . . Launcher 3 | . 2 1 Special Weapon . | . . . Impact Weapon . | . . . Slashing Weapon . | . . . Piercing Weapon . | . . . Special Melee Weapon . | . . . Unidentified Prototypes . | . . . Parts Lost 9 | . . 9 Power 2 | . . 2 Propulsion 4 | . . 4 Utility . | . . . Weapon 3 | . . 3 Highest Loss Streak 5 | . . 5 To Critical Strikes . | . . . Average Slot Usage (%) 93 | . 95 82 Engine 13 | . 14 10 Treads 24 | . 28 10 Leg 4 | . . 19 Storage 13 | . 14 11 Processor 10 | . 10 11 Energy Gun 1 | . . 7 Ballistic Gun 12 | . 14 2 Launcher 12 | . 13 10 Naked Turns . | . . . Heaviest Build 19 | 13 15 19 Greatest Support 40 | 40 40 40 Greatest Overweight (x) 4 | . . 4 Average Overweight (x) . | . . . Largest Inventory Capacity 10 | 8 8 10 Average Capacity 8 | 6 8 8 Most Carried 8 | 4 8 5 Average Carried 5 | 2 6 3 Final Capacity 10 | 8 8 10 Final Carried 6 | 4 6 3 Class Distribution -------------------- 100% | Mutant Dominant Class ---------------- Mutant | -10/Materials Mutant | -9/Materials Resources | -11 -10 -9 ----------- Run | Yrd Mat Mat Matter Collected 515 | 217 266 32 Remotely . | . . . Salvage Created 297 | . 249 48 Parts 30 | . 26 4 Haulers Intercepted . | . . . Recyclers Shooed . | . . . Parts Field Recycled . | . . . Retrieved Matter . | . . . Parts Self-Destructed . | . . . Prevented . | . . . Kills | -11 -10 -9 ------- Run | Yrd Mat Mat Combat Hostiles Destroyed 13 | . 11 2 Guns 3 | . 1 2 AOE 10 | . 10 . Classes Destroyed 7 | . 6 1 Worker 2 | . 2 . Tunneler 1 | . 1 . Recycler 1 | . 1 . Watcher 4 | . 3 1 Swarmer 6 | . 6 . Grunt 5 | . 5 . Sentry 2 | . . 2 Best Kill Streak 4 | . 4 2 Combat Bots Only 3 | . 3 1 Max Kills in Single Turn 2 | . 2 1 Gunslinging . | . . . Exploded 2 | . 2 . Melee . | . . . Uniques/NPCs Destroyed . | . . . Combat | -11 -10 -9 -------- Run | Yrd Mat Mat Hostile Shots Fired 127 | . 26 101 Missed 32 | . 6 26 Damage Taken 1440 | . 320 1120 Core 493 | . 79 414 Absorbed by Shields . | . . . Core Remaining (%) 84 | 100 68 . Volleys Fired 39 | . 23 16 Largest 2 | . 2 2 Hottest 95 | . 50 95 Shots Fired 72 | . 47 25 Gun 40 | . 25 15 Cannon . | . . . Launcher 32 | . 22 10 Special . | . . . Kinetic 32 | . 25 7 Thermal 8 | . . 8 Explosive 32 | . 22 10 Electromagnetic . | . . . Robot Hit Streak 11 | . 2 11 Robot Miss Streak 4 | . 4 2 Penetration Max . | . . . Secondary Targets . | . . . Shots Hit Robots 27 | . 8 19 Core Hits 39 | . 28 11 Critical Kills . | . . . Critical Parts Destroyed . | . . . Critical Strikes . | . . . Melee Attacks . | . . . Impact . | . . . Slashing . | . . . Piercing . | . . . Sneak Attacks . | . . . Combat Hostiles . | . . . Follow-up Attacks . | . . . Damage Inflicted 1500 | . 1050 450 Guns 228 | . 62 166 Cannons . | . . . Explosions 1269 | . 985 284 Melee . | . . . Ramming 3 | . 3 . Kinetic 138 | . 62 76 Thermal 90 | . . 90 Explosive 1269 | . 985 284 Electromagnetic . | . . . Impact . | . . . Slashing . | . . . Piercing . | . . . Highest Corruption 4 | . 4 . Average Corruption 3 | . 3 . Corruption Purged . | . . . Corruption Blocked . | . . . Effects 21 | . 21 . Message Errors 7 | . 7 . Matter Fused 1 | . 1 . Heat Flow Errors 3 | . 3 . Energy Discharges 3 | . 3 . Data Loss (minor) 1 | . 1 . Data Loss (major) 3 | . 3 . Misfires 2 | . 2 . Alerts 1 | . 1 . Overload Shots . | . . . Overflow Damage 62 | . 7 55 Projectiles . | . . . Explosions 62 | . 7 55 Melee . | . . . Knockbacks . | . . . Impact . | . . . Kinetic . | . . . Secondary . | . . . Self-Inflicted Damage 116 | . 96 20 Shots 4 | . 3 1 Rammed 1 | . 1 . Targets Rammed 2 | . 2 . Kicked . | . . . Crushed 1 | . 1 . Highest Temperature 236 | . 236 72 Average Temperature 52 | . 80 22 Received Heat Transfer 489 | . 93 396 Siege Activations . | . . . Robots Corrupted . | . . . Combat Hostiles . | . . . Parts Fried . | . . . Impact Corruptions . | . . . Robots Melted . | . . . Combat Hostiles . | . . . Parts Melted . | . . . Heat Transferred 222 | . . 222 Parts Sabotaged . | . . . Parts Stolen . | . . . Parts Stripped . | . . . Power Chain Reactions . | . . . Alert | -11 -10 -9 ------- Run | Yrd Mat Mat Peak Influence 338 | . 338 121 Initial . | . . . Average 111 | . 135 43 Maximum Alert Level 1 | . 1 . Low Security (%) 84 | 100 79 100 Level 1 15 | . 20 . Level 2 . | . . . Level 3 . | . . . Level 4 . | . . . Level 5 . | . . . High Security . | . . . Max Security . | . . . Squads Dispatched 1 | . 1 . Investigation . | . . . Extermination . | . . . Reinforcement 1 | . 1 . Assault . | . . . Garrison . | . . . Intercept . | . . . Searches Triggered . | . . . Construction Impeded . | . . . Haulers Reinforced . | . . . Active Scanning Responses . | . . . Cargo Convoy Interrupts . | . . . Stealth | -11 -10 -9 --------- Run | Yrd Mat Mat Distress Signals 4 | . 2 2 Communications Jammed . | . . . Distress Signals . | . . . Times Spotted 22 | . 15 7 Peak Tracking Total 4 | . 3 4 Tactical Retreats . | . . . Traps | -11 -10 -9 ------- Run | Yrd Mat Mat Traps Triggered 3 | . 2 1 Indirectly . | . . . Trap Hack Attempts . | . . . Triggered . | . . . Disarmed . | . . . Reprogrammed . | . . . Reused . | . . . Traps Extracted . | . . . Installed . | . . . Triggered . | . . . Machines | -11 -10 -9 ---------- Run | Yrd Mat Mat Machines Disabled 3 | . 2 1 Max in Single Turn 1 | . 1 1 Machines Repaired . | . . . Machines Dismantled . | . . . Machines Sabotaged . | . . . Overloaded Fab Kills . | . . . Hacking | -11 -10 -9 --------- Run | Yrd Mat Mat Machines Accessed 3 | . 2 1 Terminals 2 | . 1 1 Fabricators . | . . . Repair Stations . | . . . Recycling Units 1 | . 1 . Scanalyzers . | . . . Garrison Access . | . . . Total Hacks 4 | . 2 2 Successful 4 | . 2 2 Failed . | . . . Catastrophic . | . . . Database Lockouts . | . . . Manual . | . . . Terminals 3 | . 1 2 Fabricators . | . . . Repair Stations . | . . . Recycling Units 1 | . 1 . Scanalyzers . | . . . Garrison Access . | . . . Terminal Hacks 3 | . 1 2 Prototype ID Bank 1 | . . 1 Emergency Access Points 1 | . . 1 Alert Level 1 | . 1 . Fabricator Hacks . | . . . Repair Station Hacks . | . . . Recycling Unit Hacks 1 | . 1 . Recycle Component 1 | . 1 . Scanalyzer . | . . . Garrison Access Hacks . | . . . Unauthorized Hacks . | . . . Terminals . | . . . Fabricators . | . . . Repair Stations . | . . . Recycling Units . | . . . Scanalyzers . | . . . Garrison Access . | . . . Data Cores Recovered . | . . . Used . | . . . Hacking Detections 1 | . 1 . Full Trace Events . | . . . Feedback Events . | . . . Feedback Blocked . | . . . Robot Schematics Acquired . | . . . Robots Built . | . . . Authchips . | . . . Time . | . . . Total Robot Build Rating . | . . . Part Schematics Acquired . | . . . Parts Built . | . . . Authchips . | . . . Time . | . . . Total Part Build Rating . | . . . Parts Repaired . | . . . Time . | . . . Parts Recycled 1 | . 1 . Recycled Matter . | . . . Retrieved Matter . | . . . Retrieved Components . | . . . Parts Scanalyzed . | . . . Part Schematics Acquired . | . . . Parts Damaged . | . . . Bothacking | -11 -10 -9 ------------ Run | Yrd Mat Mat Used RIF Installer . | . . . Robots Hacked . | . . . Non-combat . | . . . Combat . | . . . Robot Hacks Applied . | . . . Relay Couplers Released . | . . . Fabnet Peak Effective % . | . . . Robots Rewired . | . . . Allies Hacked . | . . . Hacks Repelled . | . . . Allies | -11 -10 -9 -------- Run | Yrd Mat Mat Total Allies . | . . . Largest Group . | . . . Highest-Rated Group . | . . . Highest-Rated Ally . | . . . Total Orders . | . . . Ally Attacks . | . . . Total Damage . | . . . Kills . | . . . Allies Corrupted . | . . . Allies Melted . | . . . Intel | -11 -10 -9 ------- Run | Yrd Mat Mat Robot Analysis Total . | . . . Derelict Logs Recovered . | . . . Drone Launches . | . . . Drone Recoveries . | . . . Exploration | -11 -10 -9 ------------- Run | Yrd Mat Mat Turns Passed 2191 | 88 1657 446 Spaces Moved 1239 | 53 986 200 Core 9 | 8 . 1 Treads 1103 | 45 986 72 Legs 127 | . . 127 Wheels . | . . . Hover . | . . . Flight . | . . . Fastest Speed 50 | 50 160 160 Average Speed 162 | 143 160 179 Slowest Speed 250 | 160 160 250 Overloaded Moves . | . . . Propulsion Burnouts . | . . . Robots Hopped . | . . . Cave-ins Triggered . | . . . Exploration Rate (%) 37 | 4 94 14 Regions Visited 2 Branch Regions . Pre-discovered Areas . | . . . Known Exits Taken . | . . . Unknown Exits Taken 2 | 1 1 . Scrap Searched . | . . . Spaces Dug . | . . . Terrain Destroyed 183 | . 113 70 Melee . | . . . Projectile . | . . . AOE 183 | . 113 70 Terrain Rammed . | . . . Walls Destroyed . | . . . Machines Disabled . | . . . Actions | -11 -10 -9 --------- Run | Yrd Mat Mat Total 1343 | 62 1019 262 Wait 29 | . . 29 Move 1237 | 52 985 200 Hop . | . . . Pick Up 9 | 4 2 3 Fast Attach 14 | 6 3 5 Attach 4 | . . 4 Detach 3 | . 2 1 Swap 1 | . 1 . Drop 5 | . 1 4 Fire 39 | . 23 16 Melee . | . . . Ram . | . . . Kick . | . . . Crush 2 | . 2 . Escape Stasis . | . . . Rewire . | . . . Trap . | . . . Miscellaneous . | . . . Route ------- -11/Scrapyard -10/Materials (discovered 4 exits: *Mat x3 / [*Min]) -9/Materials History --------- Turn | Location | Event 18 | -11/Scrapyard | Discovered new exit (range 16) 89 | -11/Scrapyard | Entered Materials 310 | -10/Materials | Build established: Mutant 512 | -10/Materials | Discovered new exit (range 16) 650 | -10/Materials | Discovered new exit (range 18) 747 | -10/Materials | Discovered new exit (range 13) 836 | -10/Materials | Discovered new exit (range 5) 1746 | -10/Materials | Entered another Materials area 1746 | -9/Materials | Evolved 2 slots: Propulsion x2 2154 | -9/Materials | Lost 3 parts (1p1n1w) 2171 | -9/Materials | Core integrity fell below 50% 2186 | -9/Materials | Core integrity fell below 20% 2192 | -9/Materials | Destroyed by Y-45 Defender with Heavy Assault Rifle Last Messages --------------- Destroyed Aluminum Leg. Aluminum Leg destroyed. Destroyed Aluminum Leg. Ion Engine destroyed. K-01 Serf collects debris. Atomic Centrifuge disabled. U-05 Engineer lays Concrete. Particle Gun destroyed. U-05 Engineer lays Concrete. K-01 Serf collects debris. U-05 Engineer builds a Wall. K-01 Serf collects debris. U-05 Engineer builds a Wall. K-01 Serf collects debris. U-05 Engineer builds a Wall. K-01 Serf collects debris. U-05 Engineer builds a Wall. Mni. Grenade Launcher destroyed. U-05 Engineer lays Concrete. U-05 Engineer builds a Wall. Map ----- +----------------------------------------------------+ | ??????????????????????????????????????????????#### | | ???????????????????????????????????????######## | | ???????????????????????????????????????# # | | ????????????? ?????????????????????????# """ # | | ????????????# ?????????????????????????# """ + | | ???????????? ?????????????????????????# """ # | | ????????????# ?????????????????????????# # | | ????????????# ?????????????????????????# # | | ????????????# ??????????##########?????######## | | ????????????# ??????????# #????????????# | | ????????????# ??????????# """ #????????????# | | ??????????###/#####?????# "T" #?????######## | | ??????????# #?????# #?????# # | | ??????????# ##????# #?????# """# | | ?????????## "" #????# """ #?????# """# | | ?????????# ! #????# = """ #?????# """# | | ??????????# #????# """ #?????# # | | ??????????# ##????# #?????# # | | ########## ##u#############+#############+### | | ^ | | ^ | | =% | | #######+#### # ###########+######/###### | | ??????????? ## YY #?# # #??? | | ????????? ?#! ! """ #?#= # [ ##?? | | ???????? ?## !! # @ "" ### + [[ #?? | | ???????# """???####### "" + +[ !! # ## # | | ???????# """?????????# ### !! #![[ # # | | ???????# """?????????# " #?# ! #[[ # # | | ???????# ??????????# #?########## ## # | | ???????#?????????????# """ #?????????# #### # | | ?????????????????????# #?????????# # ## | | ?????????????????????##########?????????## # # | | ?????????????????????????????????????????## ## ### | | ???????????????????????????????????????????##?##?? | | ?????????????????????????????????????????????????? | | ?????????????????????????????????????????????????? | | ?????????????????????????????????????????????????? | | ?????????????????????????????????????????????????? | | ?????????????????????????????????????????????????? | | ?????????????????????????????????????????????????? | | ?????????????????????????????????????????????????? | | ?????????????????????????????????????????????????? | | ?????????????????????????????????????????????????? | | ?????????????????????????????????????????????????? | | ?????????????????????????????????????????????????? | | ?????????????????????????????????????????????????? | | ?????????????????????????????????????????????????? | | ?????????????????????????????????????????????????? | | ?????????????????????????????????????????????????? | +----------------------------------------------------+ Best States ------------- Heat Dissipation 28 Energy Generation 10 Energy Capacity 250 Matter Stores 257 Matter Capacity 300 Sight Range 18 Terrain Scan Density 10 Evasion (%) 40 Recoil Reduction 2 Item Schematics ----------------- None Robot Schematics ------------------ None Fabricated ------------ Nothing Alien Tech Used ----------------- None Achievements -------------- None Challenges ------------ None Game ------ Seed GunHardenedFalx Manual? 0 Play Time 00:17:54 Cumulative 2.3 hours Start 2024.04.01 @ 08:24:24 End 2024.04.01 @ 08:40:25 Sessions 1 Manual Loads 0 Difficulty Rogue Special Mode None Game No. 5 Rogue 5 Adventurer 0 Explorer 0 Win Type - Total 0 Types 0/0/0/0/0/0/0/0/0 Lore% 0 Gallery% 5 Achievement% 4 Wizard Run 0 Options --------- Layout 0 ASCII 0 Keyboard 1 Movement Vi Keybinds 0 Fullscreen 2 Font 24/Smallcaps Map View 76x50 Zoom Use 0% Tactical HUD 0 Map Filters NONE Filters NONE Steam 1 RUN: f96dc16e-041e-4220-891e-ee7cc8f7a598